bitfinex-derivatives/quotes_SOLF0:USTF0_20250211
["timestamp","ask_amount","ask_price","bid_price","bid_amount"]
[1739255306286,4.8859,204.64,204.61,0.03077683]
[1739255306493,5.76377841,204.64,204.61,0.03077683]
[1739255306989,4.8861,204.63,204.61,0.03077683]
[1739255307191,0.03228517,204.65,204.61,0.03077683]
[1739255307789,4.8859,204.64,204.61,0.03077683]
[1739255308502,0.03228517,204.65,204.61,0.03077683]
[1739255309098,4.8861,204.63,204.61,0.03077683]
[1739255309495,0.03228517,204.65,204.61,0.03077683]
[1739255310697,5.76377841,204.64,204.61,0.03077683]
[1739255310899,5.76377841,204.62,204.61,0.03077683]
[1739255311806,10.65007841,204.62,204.61,0.03077683]
[1739255312609,0.03228517,204.65,204.61,0.03077683]
[1739255312919,0.03228517,204.65,204.61,4.91727683]
[1739255313106,4.91788517,204.65,204.61,4.91727683]
[1739255313306,4.91788517,204.65,204.61,0.03077683]
[1739255313507,4.8861,204.63,204.61,0.03077683]
[1739255316307,5.76377841,204.62,204.55,5.76377841]
[1739255316513,5.76377841,204.6,204.52,5.76377841]
[1739255316812,5.76377841,204.6,204.54,4.888]
[1739255317514,5.76377841,204.6,204.55,0.03178818]
[1739255317515,0.03116315,204.59,204.55,0.03178818]
[1739255317812,4.8875,204.58,204.55,0.03178818]
[1739255318112,0.03116315,204.59,204.55,0.03178818]
[1739255319114,4.8873,204.58,204.55,0.03178818]
[1739255320114,4.8877,204.57,204.55,0.03178818]
[1739255325119,4.8877,204.56,204.55,0.03178818]
[1739255325313,5.76377841,204.58,204.55,0.03178818]
[1739255326012,4.8877,204.56,204.55,0.03178818]
[1739255326819,4.8875,204.57,204.55,0.03178818]
[1739255327522,4.8877,204.56,204.55,0.03178818]
[1739255328222,10.65147841,204.56,204.55,0.03178818]
[1739255330423,4.8875,204.57,204.55,0.03178818]
[1739255330926,4.8877,204.56,204.55,0.03178818]
[1739255331932,10.65147841,204.56,204.55,0.03178818]
[1739255336037,5.76377841,204.56,204.55,0.03178818]
[1739255337135,10.65107841,204.58,204.55,0.03178818]
[1739255337332,10.65107841,204.58,204.55,4.91978818]
[1739255337533,5.76377841,204.58,204.55,0.03178818]
[1739255338836,10.65107841,204.58,204.55,0.03178818]
[1739255339137,5.76377841,204.58,204.55,0.03178818]
[1739255339335,4.8877,204.57,204.55,0.03178818]
[1739255339735,5.76377841,204.58,204.55,0.03178818]
[1739255341234,4.8875,204.57,204.55,0.03178818]
[1739255341532,5.76377841,204.58,204.55,0.03178818]
[1739255341734,4.91826315,204.59,204.55,0.03178818]
[1739255342337,4.91826315,204.59,204.55,4.91978818]
[1739255342738,4.8873,204.58,204.55,4.91978818]
[1739255343437,4.8873,204.58,204.55,0.03178818]
[1739255344736,5.76377841,204.58,204.55,0.03178818]
[1739255345040,4.8877,204.56,204.55,0.03178818]
[1739255345731,4.8876,204.57,204.55,0.03178818]
[1739255348241,0.03116315,204.59,204.55,0.03178818]
[1739255349637,4.91836315,204.59,204.55,4.91968818]
[1739255349938,0.03116315,204.59,204.55,0.03178818]
[1739255350836,4.8873,204.58,204.55,0.03178818]
[1739255353244,4.91826315,204.59,204.55,4.91978818]
[1739255353739,0.03116315,204.59,204.56,10.65127841]
[1739255353944,0.03116315,204.59,204.56,5.76377841]
[1739255354442,0.03116315,204.59,204.55,0.03178818]
[1739255355547,4.8875,204.57,204.55,0.03178818]
[1739255356247,0.03116315,204.59,204.55,0.03178818]
[1739255356446,4.8873,204.58,204.55,0.03178818]
[1739255356643,0.03116315,204.59,204.55,0.03178818]
[1739255356843,5.76377841,204.58,204.55,0.03178818]
[1739255357041,4.8877,204.56,204.55,0.03178818]
[1739255362850,0.03116315,204.59,204.55,0.03178818]
[1739255363750,0.03116315,204.59,204.56,4.8877]
[1739255364448,0.03116315,204.59,204.55,4.91968818]
[1739255364653,4.8873,204.58,204.55,0.03178818]
[1739255364848,0.03116315,204.59,204.55,0.03178818]
[1739255365049,5.76377841,204.58,204.55,0.03178818]
[1739255365852,4.8877,204.57,204.55,0.03178818]
[1739255368854,10.65107841,204.58,204.55,0.03178818]
[1739255369949,0.03116315,204.59,204.55,0.03178818]
[1739255370155,0.03116315,204.59,204.56,5.76377841]
[1739255370350,0.03116315,204.59,204.56,10.65147841]
[1739255370554,4.91826315,204.59,204.56,5.76377841]
[1739255371056,0.03116315,204.59,204.56,5.76377841]
[1739255371256,0.03116315,204.59,204.56,10.65147841]
[1739255371449,0.03116315,204.59,204.56,4.8877]
[1739255375756,0.03116315,204.59,204.58,10.65107841]
[1739255377763,4.8859,204.64,204.58,10.65107841]
[1739255377764,5.76377841,204.64,204.58,5.76377841]
[1739255378659,4.8863,204.63,204.58,4.8871]
[1739255378860,4.92053955,204.63,204.58,4.8871]
[1739255381862,4.8864,204.62,204.57,4.8875]
[1739255382162,10.65017841,204.62,204.57,4.8875]
[1739255384257,5.76377841,204.62,204.56,7.24387841]
[1739255384456,5.76377841,204.62,204.58,4.887]
[1739255390070,4.92033955,204.63,204.59,4.887]
[1739255390365,0.03423955,204.63,204.58,5.76377841]
[1739255391668,4.8863,204.62,204.58,5.76377841]
[1739255391966,4.8863,204.62,204.56,7.24387841]
[1739255392159,0.03423955,204.63,204.56,7.24387841]
[1739255392363,4.92033955,204.63,204.58,4.887]
[1739255395270,4.92033955,204.63,204.59,4.8869]
[1739255397670,4.8863,204.62,204.58,4.8872]
[1739255397970,0.03423955,204.63,204.56,7.24387841]
[1739255398664,0.03423955,204.63,204.6,4.8868]
[1739255398970,0.03423955,204.63,204.58,5.76377841]
[1739255399167,0.03423955,204.63,204.6,4.8866]
[1739255399363,0.03423955,204.63,204.59,0.03278173]
[1739255399973,4.8865,204.62,204.59,0.03278173]
[1739255402675,4.92033955,204.63,204.59,4.91968173]
[1739255404678,0.03423955,204.63,204.6,4.8868]
[1739255404878,0.03423955,204.63,204.59,0.03278173]
[1739255405178,0.03423955,204.63,204.6,5.76377841]
[1739255405579,0.03423955,204.63,204.62,5.76377841]
[1739255406081,0.03423955,204.63,204.62,10.65007841]
[1739255407485,0.03423955,204.63,204.62,5.76377841]
[1739255408282,0.03423955,204.63,204.6,5.76377841]
[1739255408985,0.03423955,204.63,204.59,0.03278173]
[1739255410289,0.03423955,204.63,204.59,4.91978173]
[1739255411393,0.03423955,204.63,204.6,10.65047841]
[1739255412191,0.03423955,204.63,204.6,5.76377841]
[1739255412690,0.03423955,204.63,204.59,0.03278173]
[1739255413090,4.8868,204.6,204.59,0.03278173]
[1739255413593,0.03423955,204.63,204.59,0.03278173]
[1739255413892,4.8864,204.62,204.59,0.03278173]
[1739255414584,4.92033955,204.63,204.59,0.03278173]
[1739255414788,0.03423955,204.63,204.6,5.76377841]
[1739255415691,0.03423955,204.63,204.61,4.8864]
[1739255415891,0.03423955,204.63,204.6,5.76377841]
[1739255416393,0.03423955,204.63,204.59,4.91978173]
[1739255416593,0.03423955,204.63,204.59,0.03278173]
[1739255416791,4.92053955,204.63,204.59,0.03278173]
[1739255417190,0.03423955,204.63,204.59,0.03278173]
[1739255417391,4.92033955,204.63,204.59,0.03278173]
[1739255418392,4.8868,204.6,204.59,0.03278173]
[1739255419293,4.8866,204.61,204.59,0.03278173]
[1739255419893,10.65007841,204.62,204.59,0.03278173]
[1739255420592,4.8867,204.61,204.59,0.03278173]
[1739255421291,0.03423955,204.63,204.59,0.03278173]
[1739255421996,0.03423955,204.63,204.6,4.8866]
[1739255422195,0.03423955,204.63,204.6,5.76377841]
[1739255422695,0.03423955,204.63,204.61,4.8866]
[1739255422897,0.03423955,204.63,204.6,5.76377841]
[1739255423196,0.03423955,204.63,204.62,5.76377841]
[1739255423398,0.03423955,204.63,204.62,10.65007841]
[1739255423795,3.955e-05,204.63,204.62,10.65007841]
[1739255425300,3.955e-05,204.63,204.62,5.76377841]
[1739255425800,3.955e-05,204.63,204.6,8.75207841]
[1739255426100,5.76377841,204.62,204.59,0.03278173]
[1739255426299,5.76377841,204.6,204.59,0.03278173]
[1739255426500,10.65057841,204.6,204.59,2.9284252]
[1739255428497,10.65057841,204.6,204.59,2.91531201]
[1739255428694,10.65057841,204.6,204.59,0.03278173]
[1739255429198,4.8874,204.58,204.52,5.76377841]
[1739255429395,10.65117841,204.58,204.52,5.76377841]
[1739255429804,14.67,204.69,204.5,32.93457435]
[1739255429805,5.76377841,204.56,204.5,32.93457435]
[1739255430004,5.76377841,204.54,204.5,27.17079594]
[1739255430201,5.76377841,204.54,204.49,2.9579]
[1739255430401,5.80016773,204.54,204.5,0.03617519]
[1739255430804,10.68846773,204.54,204.5,0.03617519]
[1739255432199,5.80016773,204.54,204.5,0.03617519]
[1739255432605,0.03638932,204.54,204.5,0.03617519]
[1739255433108,0.03638932,204.54,204.5,5.7999536]
[1739255434206,4.8886,204.53,204.5,5.7999536]
[1739255434708,0.03638932,204.54,204.5,5.7999536]
[1739255435102,4.8885,204.53,204.5,5.7999536]
[1739255435405,0.03638932,204.54,204.5,5.7999536]
[1739255436104,4.8885,204.53,204.5,5.7999536]
[1739255436305,5.80016773,204.54,204.5,0.03617519]
[1739255437205,4.8888,204.52,204.5,0.03617519]
[1739255437401,5.76377841,204.52,204.5,0.03617519]
[1739255437905,4.8889,204.51,204.5,0.03617519]
[1739255438607,5.76377841,204.52,204.42,5.76377841]
[1739255438809,5.76377841,204.47,204.4,5.76377841]
[1739255439609,4.8908,204.44,204.4,5.76377841]
[1739255439809,4.8908,204.44,204.41,0.03737957]
[1739255440010,0.03733162,204.46,204.41,0.03737957]
[1739255442919,5.76377841,204.45,204.41,0.03737957]
[1739255443920,0.03733162,204.46,204.41,4.92857957]
[1739255444317,0.03733162,204.46,204.41,0.03737957]
[1739255444518,5.76377841,204.45,204.41,0.03737957]
[1739255447323,4.8906,204.44,204.41,0.03737957]
[1739255447923,4.8911,204.42,204.35,4.8925]
[1739255448125,5.76377841,204.4,204.34,5.76377841]
[1739255448520,5.76377841,204.4,204.37,4.8922]
[1739255449520,5.76377841,204.4,204.36,0.03532188]
[1739255449730,0.03271269,204.41,204.38,4.892]
[1739255450526,0.03271269,204.41,204.4,4.8916]
[1739255455926,0.03271269,204.41,204.4,10.65537841]
[1739255467741,0.03271269,204.41,204.39,4.8918]
[1739255468232,0.03271269,204.41,204.36,5.79910029]
[1739255468429,5.76377841,204.4,204.36,0.03532188]
[1739255469837,10.65547841,204.4,204.36,0.03532188]
[1739255471946,10.65587841,204.38,204.36,0.03532188]
[1739255472447,5.76377841,204.38,204.36,0.03532188]
[1739255472641,4.8923,204.37,204.36,0.03532188]
[1739255473040,5.76377841,204.38,204.36,0.03532188]
[1739255473636,14.67,204.37,204.21,12.55647739]
[1739255473840,5.76377841,204.25,204.21,6.79269898]
[1739255474246,5.76377841,204.25,204.2,6.79269898]
[1739255474940,5.79555516,204.25,204.2,6.82632795]
[1739255475345,5.76377841,204.23,204.2,6.82632795]
[1739255475644,0.03177675,204.25,204.21,4.8961]
[1739255475645,5.79555516,204.25,204.21,4.8961]
[1739255476041,5.79555516,204.25,204.2,6.82632795]
[1739255476242,5.79555516,204.25,204.2,11.72262795]
[1739255476548,5.79555516,204.25,204.2,6.82632795]
[1739255477045,5.76377841,204.23,204.2,6.82632795]
[1739255477346,5.76377841,204.21,204.2,6.82632795]
[1739255478144,5.76377841,204.21,204.2,0.03362897]
[1739255478845,10.65987841,204.21,204.2,0.03362897]
[1739255479049,5.76377841,204.21,204.12,5.76377841]
[1739255479346,5.76377841,204.21,204.16,4.8971]
[1739255479648,9.06753141,204.23,204.1,9.06753141]
[1739255479946,4.8962,204.21,204.14,4.8976]
[1739255480140,0.03529497,204.19,204.14,4.93431462]
[1739255480347,0.03529497,204.19,204.14,0.03671462]
[1739255481445,4.8971,204.17,204.14,0.03671462]
[1739255481650,0.03529497,204.19,204.14,0.03671462]
[1739255484149,4.8969,204.18,204.14,0.03671462]
[1739255485752,4.93189497,204.19,204.14,0.03671462]
[1739255486252,0.03529497,204.19,204.14,0.03671462]
[1739255486450,4.8969,204.18,204.14,0.03671462]
[1739255487352,0.03529497,204.19,204.14,4.93451462]
[1739255487552,4.93209497,204.19,204.14,4.93451462]
[1739255487851,0.03529497,204.19,204.14,4.93451462]
[1739255488053,0.03529497,204.19,204.14,0.03671462]
[1739255488253,4.8969,204.18,204.14,0.03671462]
[1739255488553,0.03529497,204.19,204.14,0.03671462]
[1739255488952,0.03529497,204.19,204.15,4.8975]
[1739255489645,0.03529497,204.19,204.17,4.8971]
[1739255490552,0.03529497,204.19,204.18,4.8968]
[1739255493254,0.03529497,204.19,204.16,4.8971]
[1739255493460,0.03529497,204.19,204.14,0.03671462]
[1739255493751,0.03529497,204.19,204.16,4.8972]
[1739255494054,0.03529497,204.19,204.14,0.03671462]
[1739255494554,0.03529497,204.19,204.16,4.8971]
[1739255494756,0.03529497,204.19,204.14,0.03671462]
[1739255495157,0.03529497,204.19,204.15,4.8974]
[1739255495357,0.03529497,204.19,204.14,0.03671462]
[1739255495757,0.03529497,204.19,204.18,4.8968]
[1739255496858,0.03529497,204.19,204.16,4.8971]
[1739255497958,0.03529497,204.19,204.14,0.03671462]
[1739255499058,0.03529497,204.19,204.16,4.8971]
[1739255499555,0.03529497,204.19,204.17,4.897]
[1739255501561,0.03529497,204.19,204.18,4.8968]
[1739255502762,5.80200609,204.26,204.22,4.8957]
[1739255503764,10.73001837,204.26,204.22,0.03213379]
[1739255504063,5.83491837,204.26,204.22,0.03213379]
[1739255504862,5.83491837,204.26,204.22,4.92793379]
[1739255505559,10.72991837,204.26,204.22,0.03213379]
[1739255507764,10.72991837,204.26,204.22,4.92803379]
[1739255507966,0.03291228,204.26,204.22,0.03213379]
[1739255508866,0.03291228,204.26,204.24,4.8954]
[1739255509662,0.03291228,204.26,204.23,4.8956]
[1739255509861,0.03291228,204.26,204.22,0.03213379]
[1739255510362,5.83491837,204.26,204.22,0.03213379]
[1739255510559,5.80200609,204.24,204.22,0.03213379]
[1739255512563,10.69740609,204.24,204.22,0.03213379]
[1739255512965,5.80200609,204.24,204.22,0.03213379]
[1739255513766,10.69740609,204.24,204.22,0.03213379]
[1739255513962,5.80200609,204.24,204.22,0.03213379]
[1739255514266,4.8956,204.23,204.22,0.03213379]
[1739255516668,4.8963,204.21,204.15,1.4711]
[1739255516865,5.80200609,204.2,204.15,6.3685]
[1739255517166,5.80200609,204.2,204.13,5.80200609]
[1739255517557,5.80200609,204.22,204.15,5.80200609]
[1739255517762,0.03352239,204.18,204.15,5.80200609]
[1739255518061,0.03352239,204.18,204.17,4.8971]
[1739255518668,0.03352239,204.18,204.15,4.8974]
[1739255518867,0.03352239,204.18,204.13,5.83577564]
[1739255519166,0.03352239,204.18,204.15,4.8974]
[1739255520862,0.03352239,204.18,204.13,5.83577564]
[1739255521769,0.03352239,204.18,204.17,4.8971]
[1739255523066,0.03352239,204.18,204.17,10.69910609]
[1739255524166,0.03352239,204.18,204.17,4.8971]
[1739255524668,0.03352239,204.18,204.13,5.83577564]
[1739255525771,0.03352239,204.18,204.15,5.80200609]
[1739255527573,0.03352239,204.18,204.17,10.69910609]
[1739255527870,5.80200609,204.26,204.17,5.80200609]
[1739255528071,5.80200609,204.26,204.19,5.80200609]
[1739255528770,10.69710609,204.26,204.21,4.8961]
[1739255529271,10.73149298,204.26,204.21,4.93048096]
[1739255529567,0.03438689,204.26,204.23,4.8955]
[1739255529869,0.03438689,204.26,204.21,5.83638705]
[1739255530365,0.03438689,204.26,204.24,4.8954]
[1739255531267,0.03438689,204.26,204.25,10.69720609]
[1739255531966,0.03438689,204.26,204.25,5.80200609]
[1739255532270,0.03438689,204.26,204.23,5.80200609]
[1739255533872,0.03438689,204.26,204.24,4.8954]
[1739255535570,0.03438689,204.26,204.23,5.80200609]
[1739255535873,0.03438689,204.26,204.25,10.69720609]
[1739255537071,5.80200609,204.36,204.3,4.8937]
[1739255537270,5.80200609,204.36,204.31,5.80200609]
[1739255537576,5.80200609,204.36,204.29,5.80200609]
[1739255537767,5.80200609,204.34,204.27,5.80200609]
[1739255538076,5.80200609,204.32,204.25,5.80200609]
[1739255538278,5.80200609,204.32,204.28,0.03455918]
[1739255538478,10.69570609,204.32,204.28,0.03455918]
[1739255538673,5.80200609,204.32,204.28,0.03455918]
[1739255538869,4.8942,204.29,204.28,0.03455918]
[1739255539475,4.8951,204.26,204.2,4.8963]
[1739255539674,5.80200609,204.25,204.2,4.8963]
[1739255539874,5.80200609,204.27,204.22,4.8959]
[1739255540679,5.83770967,204.27,204.22,4.92854562]
[1739255540880,5.83770967,204.27,204.23,4.8956]
[1739255541481,0.03570358,204.27,204.22,0.03264562]
[1739255541683,0.03570358,204.27,204.25,4.8949]
[1739255542079,0.03570358,204.27,204.22,0.03264562]
[1739255542279,0.03570358,204.27,204.26,4.8949]
[1739255543887,0.03570358,204.27,204.24,4.8952]
[1739255544983,0.03570358,204.27,204.22,0.03264562]
[1739255546683,4.8955,204.24,204.22,0.03264562]
[1739255547979,9.09463208,204.27,204.22,0.03264562]
[1739255548289,4.8956,204.23,204.22,0.03264562]
[1739255550688,9.0589285,204.24,204.22,0.03264562]
[1739255550989,9.09463208,204.27,204.22,0.03264562]
[1739255551930,0.03570358,204.27,204.22,0.03264562]
[1739255552234,4.895,204.26,204.22,0.03264562]
[1739255553284,0.03570358,204.27,204.25,4.8952]
[1739255554589,0.03570358,204.27,204.26,4.8949]
[1739255556893,9.0589285,204.36,204.23,10.6506285]
[1739255557088,4.8932,204.34,204.23,10.6506285]
[1739255557494,9.0589285,204.36,204.23,10.6506285]
[1739255557695,4.8933,204.33,204.28,4.8942]
[1739255557995,4.8933,204.33,204.23,10.6506285]
[1739255558197,4.92895622,204.33,204.28,0.03757299]
[1739255558495,0.03565622,204.33,204.28,0.03757299]
[1739255558893,4.8936,204.32,204.28,0.03757299]
[1739255559396,0.03565622,204.33,204.28,0.03757299]
[1739255559799,4.8939,204.31,204.28,0.03757299]
[1739255560098,0.03565622,204.33,204.28,0.03757299]
[1739255560895,0.03565622,204.33,204.3,4.8938]
[1739255561095,0.03565622,204.33,204.28,0.03757299]
[1739255562897,0.03565622,204.33,204.3,4.894]
[1739255563702,0.03565622,204.33,204.28,0.03757299]
[1739255564702,0.03565622,204.33,204.3,4.8939]
[1739255564903,0.03565622,204.33,204.28,0.03757299]
[1739255565899,4.8935,204.32,204.28,4.93177299]
[1739255566705,9.09458472,204.33,204.28,0.03757299]
[1739255567306,4.894,204.3,204.28,0.03757299]
[1739255568004,9.09458472,204.33,204.28,0.03757299]
[1739255568199,4.8937,204.31,204.28,0.03757299]
[1739255568400,0.03565622,204.33,204.28,0.03757299]
[1739255568595,0.03565622,204.33,204.31,4.8937]
[1739255569902,0.03565622,204.33,204.32,4.8935]
[1739255571504,81.66594338,204.42,204.34,4.8928]
[1739255571699,81.66594338,204.42,204.33,1.5747]
[1739255571905,9.0589285,204.45,204.33,1.5747]
[1739255572307,4.8903,204.46,204.35,9.0589285]
[1739255572505,0.03370488,204.43,204.38,0.03651308]
[1739255572705,0.03370488,204.43,204.4,4.8915]
[1739255573206,0.03370488,204.43,204.38,4.92831308]
[1739255573799,0.03370488,204.43,204.38,0.03651308]
[1739255574902,4.8915,204.41,204.38,0.03651308]
[1739255577403,0.03370488,204.43,204.38,0.03651308]
[1739255577610,4.8916,204.4,204.38,0.03651308]
[1739255577805,0.03370488,204.43,204.38,0.03651308]
[1739255578010,4.8918,204.39,204.38,0.03651308]
[1739255580513,4.8915,204.41,204.38,0.03651308]
[1739255580712,0.03370488,204.43,204.38,0.03651308]
[1739255581210,4.8914,204.41,204.38,0.03651308]
[1739255581414,0.03370488,204.43,204.38,0.03651308]
[1739255582315,0.03370488,204.43,204.4,9.0589285]
[1739255582910,0.03370488,204.43,204.42,4.8911]
[1739255583519,4.8887,204.52,204.47,4.8899]
[1739255584414,92.27857188,204.54,204.43,9.0589285]
[1739255584613,0.03221263,204.52,204.47,0.0321506]
[1739255585416,4.8896,204.49,204.47,0.0321506]
[1739255586115,0.03221263,204.52,204.47,0.0321506]
[1739255586312,4.8897,204.48,204.47,0.0321506]
[1739255591511,4.8909,204.43,204.39,6.3553]
[1739255592618,4.92643967,204.43,204.39,6.38965905]
[1739255592819,4.8911,204.42,204.39,0.03435905]
[1739255593015,0.03553967,204.43,204.39,0.03435905]
[1739255593714,4.8911,204.42,204.39,0.03435905]
[1739255594421,0.03553967,204.43,204.39,0.03435905]
[1739255594719,0.03553967,204.43,204.4,4.8915]
[1739255595718,0.03553967,204.43,204.42,4.8911]
[1739255596316,0.03553967,204.43,204.41,4.8913]
[1739255596520,0.03553967,204.43,204.39,0.03435905]
[1739255596923,4.8913,204.42,204.39,0.03435905]
[1739255597118,0.03553967,204.43,204.39,0.03435905]
[1739255597715,4.8914,204.41,204.39,0.03435905]
[1739255598121,0.03553967,204.43,204.39,0.03435905]
[1739255598322,4.92663967,204.43,204.39,0.03435905]
[1739255599324,0.03553967,204.43,204.39,4.92615905]
[1739255599927,0.03553967,204.43,204.41,4.8913]
[1739255600926,0.03553967,204.43,204.39,0.03435905]
[1739255601423,0.03553967,204.43,204.41,4.8913]
[1739255602126,0.03553967,204.43,204.39,0.03435905]
[1739255603828,4.92643967,204.43,204.39,0.03435905]
[1739255604028,0.03553967,204.43,204.39,0.03435905]
[1739255604731,4.8915,204.41,204.39,0.03435905]
[1739255604921,0.03553967,204.43,204.39,0.03435905]
[1739255605325,4.8916,204.4,204.39,0.03435905]
[1739255607625,4.8928,204.36,204.3,4.8937]
[1739255607822,4.8928,204.36,204.29,9.0589285]
[1739255608029,9.0589285,204.43,204.29,9.0589285]
[1739255608331,4.8924,204.37,204.32,4.8935]
[1739255608730,4.92908842,204.37,204.32,4.93007146]
[1739255608928,0.03668842,204.37,204.34,4.893]
[1739255609833,0.03668842,204.37,204.36,4.8925]
[1739255611138,81.66594338,204.46,204.39,4.8918]
[1739255611339,81.66594338,204.46,204.35,9.0589285]
[1739255612233,4.8905,204.45,204.4,4.8915]
[1739255612430,0.03743386,204.43,204.38,0.03195895]
[1739255614038,4.92853386,204.43,204.38,4.92395895]
[1739255614733,0.03743386,204.43,204.38,0.03195895]
[1739255614935,9.0589285,204.42,204.38,0.03195895]
[1739255616232,4.8918,204.39,204.38,0.03195895]
[1739255617633,4.8918,204.39,204.38,5.895e-05]
[1739255620740,13.9507285,204.39,204.38,5.895e-05]
[1739255626941,4.8918,204.39,204.38,5.895e-05]
[1739255629642,4.8915,204.41,204.38,5.895e-05]
[1739255631445,0.03743386,204.43,204.38,5.895e-05]
[1739255632545,4.8918,204.39,204.38,5.895e-05]
[1739255636655,13.9507285,204.39,204.38,5.895e-05]
[1739255637856,13.9507285,204.39,204.22,9.0589285]
[1739255638055,4.8938,204.31,204.23,1.4859]
[1739255639254,0.03615361,204.29,204.25,0.03082563]
[1739255639755,0.03615361,204.29,204.26,4.8949]
[1739255640555,0.03615361,204.29,204.25,0.03082563]
[1739255641758,0.03615361,204.29,204.25,4.92592563]
[1739255642159,0.03615361,204.29,204.25,0.03082563]
[1739255642361,4.8945,204.28,204.25,0.03082563]
[1739255642560,0.03615361,204.29,204.25,0.03082563]
[1739255643550,0.03615361,204.29,204.25,5.82744894]
[1739255643954,0.03615361,204.29,204.25,10.72254894]
[1739255644659,0.03615361,204.29,204.25,5.82744894]
[1739255644959,4.93045361,204.29,204.25,5.82744894]
[1739255645361,0.03615361,204.29,204.25,10.72264894]
[1739255647556,0.03615361,204.29,204.26,4.8948]
[1739255648959,0.03615361,204.29,204.25,5.82744894]
[1739255649160,0.03615361,204.29,204.25,10.72254894]
[1739255650059,0.03615361,204.29,204.26,4.8949]
[1739255650359,0.03615361,204.29,204.27,5.79662331]
[1739255651060,0.03615361,204.29,204.25,5.82744894]
[1739255652261,0.03615361,204.29,204.26,4.8949]
[1739255652861,4.8949,204.27,204.25,0.03082563]
[1739255653956,4.8949,204.26,204.25,0.03082563]
[1739255655265,4.8947,204.28,204.25,0.03082563]
[1739255656960,0.03615361,204.29,204.25,5.82744894]
[1739255657166,0.03615361,204.29,204.27,5.79662331]
[1739255658568,0.03615361,204.29,204.28,4.8944]
[1739255659070,4.8927,204.36,204.31,4.8935]
[1739255659370,4.8927,204.36,204.31,5.79662331]
[1739255660268,4.8927,204.36,204.31,5.83122296]
[1739255660269,4.93015156,204.36,204.31,5.83122296]
[1739255660870,4.93015156,204.36,204.32,4.8934]
[1739255663574,0.03745156,204.36,204.34,4.8929]
[1739255665176,0.03745156,204.36,204.33,10.68982331]
[1739255665676,0.03745156,204.36,204.31,5.83122296]
[1739255665874,4.893,204.35,204.31,10.72472296]
[1739255666069,0.03745156,204.36,204.31,5.83122296]
[1739255666578,0.03745156,204.36,204.33,4.893]
[1739255668676,0.03745156,204.36,204.34,4.8929]
[1739255669871,0.03745156,204.36,204.35,10.68942331]
[1739255670073,74.01834951,204.43,204.35,5.79662331]
[1739255670272,74.01834951,204.43,204.39,4.8918]
[1739255670477,68.2217262,204.43,204.39,4.8918]
[1739255670673,68.2217262,204.43,204.37,5.79662331]
[1739255670973,4.8904,204.45,204.4,4.8914]
[1739255671471,0.03331311,204.45,204.42,4.891]
[1739255671675,0.03331311,204.45,204.41,5.79662331]
[1739255672277,4.92371311,204.45,204.41,5.79662331]
[1739255672479,0.03331311,204.45,204.4,0.03263209]
[1739255672981,4.8909,204.43,204.4,0.03263209]
[1739255674881,5.82993642,204.45,204.4,0.03263209]
[1739255675271,4.8906,204.44,204.4,0.03263209]
[1739255675683,5.82993642,204.45,204.4,0.03263209]
[1739255675879,0.03331311,204.45,204.4,0.03263209]
[1739255676179,0.03331311,204.45,204.42,4.891]
[1739255677079,0.03331311,204.45,204.44,4.8906]
[1739255677279,12.29046,204.5,204.43,5.79662331]
[1739255677479,12.29046,204.5,204.46,5.79662331]
[1739255677882,12.29046,204.5,204.48,4.8894]
[1739255678283,12.29046,204.5,204.46,5.79662331]
[1739255678487,12.29046,204.5,204.47,0.03535443]
[1739255679289,12.29046,204.5,204.48,5.79662331]
[1739255679581,12.29046,204.5,204.49,4.8894]
[1739255680177,12.29046,204.5,204.48,5.79662331]
[1739255681386,0.03334808,204.51,204.48,5.79662331]
[1739255681586,0.03334808,204.51,204.5,5.79662331]
[1739255681883,0.03334808,204.51,204.5,10.68582331]
[1739255682090,0.03334808,204.51,204.5,5.79662331]
[1739255684287,4.92234808,204.51,204.48,5.79662331]
[1739255684482,4.92234808,204.51,204.47,0.03535443]
[1739255684483,0.03334808,204.51,204.47,0.03535443]
[1739255685688,4.8894,204.49,204.47,0.03535443]
[1739255686392,4.92244808,204.51,204.48,5.79662331]
[1739255686992,0.03334808,204.51,204.5,5.79662331]
[1739255688393,0.03334808,204.51,204.48,5.79662331]
[1739255690897,0.03334808,204.51,204.48,10.68632331]
[1739255691898,0.03334808,204.51,204.49,4.8894]
[1739255692099,0.03334808,204.51,204.5,5.79662331]
[1739255692699,0.03334808,204.51,204.5,10.68582331]
[1739255693397,0.30216,204.61,204.5,10.68582331]
[1739255693700,0.30216,204.61,204.57,5.79662331]
[1739255694596,0.33340289,204.61,204.57,5.83095919]
[1739255695197,0.03124289,204.61,204.57,5.83095919]
[1739255695798,0.03124289,204.61,204.57,0.03433588]
[1739255695997,5.79662331,204.6,204.57,0.03433588]
[1739255696601,4.8872,204.59,204.57,0.03433588]
[1739255696801,5.79662331,204.6,204.57,0.03433588]